[Event "Romanian Open 2019"]
[Site "Alba Iulia"]
[Date "2019.10.28"]
[Round "1.7"]
[White "Pap, Misa"]
[Black "Yordanov, Lachezar"]
[Result "1-0"]
[ECO "B22"]
[WhiteElo "2432"]
[BlackElo "2260"]
[Annotator "NA"]
[PlyCount "107"]
[EventDate "2019.10.28"]
[EventType "swiss"]
[EventCountry "ROU"]
[SourceTitle "playchess.com"]
[Source "ChessBase"]
[SourceQuality "1"]
[TimeControl "5400+30"]

1. e4 {[%emt 0:00:00]} c5 {[%emt 0:00:00]} 2. c3 {[%emt 0:00:00]} d5 {[%emt 0:00:00]} 3. exd5 {[%emt 0:00:00]} Qxd5 {[%emt 0:00:00]} 4. Nf3 {[%emt 0:00:01]} Nf6 {[%emt 0:00:04]} 5. Na3 {[%emt 0:00:12]} Bg4 {[%emt 0:01:27]} 6. Be2 {[%emt 0:00:24]} Nc6 {[%emt 0:00:56]} 7. O-O {[%emt 0:01:05]} e6 {[%emt 0:01:30]} 8. d3 {[%emt 0:31:32]} Be7 {[%emt 0:02:23]} 9. Nc4 {[%emt 0:00:09]} Bh5 {[%emt 0:04:22]} 10. Qb3 {[%emt 0:03:06]} O-O {[%emt 0:00:58]} 11. Bf4 {[%emt 0:00:08]} Rac8 {[%emt 0:03:08]} 12. Rad1 {[%emt 0:01:24]} Rfd8 {[%emt 0:02:59]} 13. Rfe1 {[%emt 0:00:59]} b6 {[%emt 0:01:38]} 14. h3 {[%emt 0:04:01]} h6 {[%emt 0:04:33]} 15. g4 {[%emt 0:06:51]} Bg6 {[%emt 0:00:25]} 16. Bg3 {[%emt 0:00:14]} Bh7 {[%emt 0:01:56]} 17. Qb5 {[%emt 0:08:37]} Qd7 {[%emt 0:02:48]} 18. a4 {[%emt 0:00:18]} Nd5 {[%emt 0:01:32]} 19. Nfe5 {[%emt 0:03:13]} Nxe5 {[%emt 0:00:34]} 20. Nxe5 {[%emt 0:00:05]} Qe8 {[%emt 0:02:13]} 21. Bf3 {[%emt 0:08:01]} Bd6 {[%emt 0:05:56]} 22. Qa6 {[%emt 0:03:19]} Bxe5 {[%emt 0:02:24]} 23. Bxe5 {[%emt 0:01:32]} Qd7 {[%emt 0:00:15]} 24. d4 {[%emt 0:01:36]} c4 {[%emt 0:01:26]} 25. Qb5 {[%emt 0:02:12]} Bc2 {[%emt 0:05:23]} 26. Ra1 {[%emt 0:01:11]} a5 {[%emt 0:05:09]} 27. Be2 {[%emt 0:02:38]} Qxb5 {[%emt 0:02:00]} 28. axb5 {[%emt 0:00:06]} f6 {[%emt 0:00:48]} 29. Bg3 {[%emt 0:00:09]} Kf7 {[%emt 0:00:08]} 30. Rec1 {[%emt 0:00:28]} Bb3 {[%emt 0:00:43]} 31. Bf3 {[%emt 0:01:21]} g5 {[%emt 0:01:04]} 32. Be4 {[%emt 0:00:28]} Rh8 {[%emt 0:01:43]} 33. Re1 {[%emt 0:00:42]} h5 {[%emt 0:01:45]} 34. Kg2 {[%emt 0:01:06]} hxg4 {[%emt 0:00:53]} 35. hxg4 {[%emt 0:00:05]} Rce8 {[%emt 0:02:41]} 36. Ra3 {[%emt 0:03:18]} Rc8 {[%emt 0:01:11]} 37. Raa1 {[%emt 0:00:11]} Rce8 {[%emt 0:00:05]} 38. Re2 {[%emt 0:00:16]} Rc8 {[%emt 0:09:25]} 39. Rae1 {[%emt 0:00:29]} Rce8 {[%emt 0:00:17]} 40. Bf3 {[%emt 0:00:30]} Ba4 {[%emt 0:01:51]} 41. Rxe6 {[%emt 0:02:12]} Rxe6 {[%emt 0:00:04]} 42. Bxd5 {[%emt 0:00:06]} Rhe8 {[%emt 0:00:03]} 43. Bxc4 {[%emt 0:02:57]} Bxb5 {[%emt 0:00:01]} 44. Bxe6+ {[%emt 0:03:22]} Rxe6 {[%emt 0:00:12]} 45. Rxe6 {[%emt 0:00:31]} Kxe6 {[%emt 0:00:02]} 46. Bc7 {[%emt 0:00:06]} a4 {[%emt 0:01:05]} 47. Bxb6 {[%emt 0:00:16]} Bc4 {[%emt 0:00:08]} 48. Kf3 {[%emt 0:00:35]} Bb3 {[%emt 0:00:11]} 49. Ke3 {[%emt 0:00:09]} Bd1 {[%emt 0:00:13]} 50. c4 {[%emt 0:00:45]} Bxg4 {[%emt 0:00:05]} 51. d5+ {[%emt 0:00:20]} Kd7 {[%emt 0:00:26]} 52. Bd4 {[%emt 0:00:27]} Bd1 {[%emt 0:02:06]} 53. Bxf6 {[%emt 0:00:14]} g4 {[%emt 0:00:07]} 54. Ke4 1-0

[Event "Romanian Open 2019"]
[Site "Alba Iulia"]
[Date "2019.10.28"]
[Round "1.8"]
[White "Advait, Bagri"]
[Black "Harutjunyan, Gevorg"]
[Result "1/2-1/2"]
[ECO "B19"]
[WhiteElo "2231"]
[BlackElo "2428"]
[Annotator "NA"]
[PlyCount "82"]
[EventDate "2019.10.28"]
[EventType "swiss"]
[EventCountry "ROU"]
[SourceTitle "playchess.com"]
[Source "ChessBase"]
[SourceQuality "1"]
[TimeControl "5400+30"]

1. e4 {[%emt 0:00:00]} c6 {[%emt 0:00:00]} 2. d4 {[%emt 0:00:21]} d5 {[%emt 0:00:00]} 3. Nc3 {[%emt 0:00:20]} dxe4 {[%emt 0:00:00]} 4. Nxe4 {[%emt 0:00:16]} Bf5 {[%emt 0:00:00]} 5. Ng3 {[%emt 0:00:14]} Bg6 {[%emt 0:00:00]} 6. h4 {[%emt 0:00:25]} h6 {[%emt 0:00:00]} 7. Nf3 {[%emt 0:00:27]} Nd7 {[%emt 0:00:07]} 8. h5 {[%emt 0:00:32]} Bh7 {[%emt 0:00:06]} 9. Bd3 {[%emt 0:00:13]} Bxd3 {[%emt 0:00:09]} 10. Qxd3 {[%emt 0:00:12]} e6 {[%emt 0:00:05]} 11. Bd2 {[%emt 0:00:32]} Ngf6 {[%emt 0:00:17]} 12. O-O-O {[%emt 0:00:56]} Be7 {[%emt 0:00:21]} 13. Ne4 {[%emt 0:01:08]} Qb6 {[%emt 0:00:08]} 14. Nxf6+ {[%emt 0:11:23]} Bxf6 {[%emt 0:00:13]} 15. Bf4 {[%emt 0:02:01]} c5 {[%emt 0:01:04]} 16. Ne5 {[%emt 0:03:49]} cxd4 {[%emt 0:00:18]} 17. Nxd7 {[%emt 0:05:16]} Kxd7 {[%emt 0:00:06]} 18. Be3 {[%emt 0:00:48]} Rhd8 {[%emt 0:04:20]} 19. Bxd4 {[%emt 0:02:28]} Bxd4 {[%emt 0:00:52]} 20. Qxd4+ {[%emt 0:00:13]} Qxd4 {[%emt 0:00:05]} 21. Rxd4+ {[%emt 0:00:13]} Ke7 {[%emt 0:00:02]} 22. Rg4 {[%emt 0:05:12]} Kf8 {[%emt 0:00:23]} 23. Rh3 {[%emt 0:01:44]} Rd5 {[%emt 0:01:22]} 24. Rhg3 {[%emt 0:02:13]} Rad8 {[%emt 0:19:21]} 25. b3 {[%emt 0:01:05]} Rf5 {[%emt 0:27:11]} 26. Rxg7 {[%emt 0:03:52]} Rxf2 {[%emt 0:00:07]} 27. Rg8+ {[%emt 0:00:10]} Ke7 {[%emt 0:00:05]} 28. Rxd8 {[%emt 0:00:11]} Kxd8 {[%emt 0:00:03]} 29. Rf3 {[%emt 0:05:56]} Rxf3 {[%emt 0:00:03]} 30. gxf3 {[%emt 0:00:12]} Ke7 {[%emt 0:00:16]} 31. c4 {[%emt 0:02:38]} Kf6 {[%emt 0:01:28]} 32. Kd2 {[%emt 0:04:00]} Kg5 {[%emt 0:01:17]} 33. b4 {[%emt 0:19:47]} Kxh5 {[%emt 0:01:44]} 34. c5 {[%emt 0:00:11]} Kg5 {[%emt 0:04:58]} 35. b5 {[%emt 0:00:14]} Kf6 {[%emt 0:00:11]} 36. a4 {[%emt 0:00:06]} Ke7 {[%emt 0:01:15]} 37. f4 {[%emt 0:04:53]} Kd7 {[%emt 0:32:06]} 38. Ke3 {[%emt 0:01:39]} f6 {[%emt 0:00:33]} 39. Kf3 {[%emt 0:00:18]} a5 {[%emt 0:03:42]} 40. Kg4 {[%emt 0:00:57]} e5 {[%emt 0:00:27]} 41. f5 {[%emt 0:01:00]} Ke7 1/2-1/2

[Event "Romanian Open 2019"]
[Site "Alba Iulia"]
[Date "2019.10.28"]
[Round "1.9"]
[White "Shishkin, Vadim"]
[Black "Sahil, Tickoo"]
[Result "1-0"]
[ECO "D37"]
[WhiteElo "2428"]
[BlackElo "2167"]
[Annotator "NA"]
[PlyCount "135"]
[EventDate "2019.10.28"]
[EventType "swiss"]
[EventCountry "ROU"]
[SourceTitle "playchess.com"]
[Source "ChessBase"]
[SourceQuality "1"]
[TimeControl "5400+30"]

1. d4 {[%emt 0:00:00]} d5 {[%emt 0:00:00]} 2. c4 {[%emt 0:00:00]} e6 {[%emt 0:00:00]} 3. Nf3 {[%emt 0:00:57]} Nf6 {[%emt 0:00:00]} 4. Nc3 {[%emt 0:00:05]} Be7 {[%emt 0:00:16]} 5. Bf4 {[%emt 0:00:07]} O-O {[%emt 0:00:29]} 6. e3 {[%emt 0:00:08]} b6 {[%emt 0:00:25]} 7. Qc2 {[%emt 0:00:06]} Ba6 {[%emt 0:01:29]} 8. Ne5 {[%emt 0:00:40]} dxc4 {[%emt 0:02:06]} 9. Bxc4 {[%emt 0:00:47]} Bxc4 {[%emt 0:00:05]} 10. Nxc4 {[%emt 0:00:07]} Nd5 {[%emt 0:00:15]} 11. Bg3 {[%emt 0:06:51]} Nxc3 {[%emt 0:00:36]} 12. Qxc3 {[%emt 0:00:00]} Qd5 {[%emt 0:00:00]} 13. O-O c5 14. dxc5 Qxc5 15. Rac1 Na6 16. a3 Rfd8 17. b4 Qd5 18. f3 Qb7 19. Ne5 Bf6 20. Qc6 Qxc6 21. Nxc6 Rd3 22. e4 Bb2 23. Rc2 Bxa3 24. Rb1 Kf8 25. Kf1 Rc8 26. Ke2 Rd7 27. Rb3 Rxc6 28. Rxc6 Bxb4 29. Rd3 Ke7 30. Rc8 Rb7 31. Rdd8 f6 32. e5 f5 33. Bh4+ Kf7 34. Rc6 Be7 35. Bxe7 Kxe7 36. Rg8 Kf7 37. Rcc8 Nc5 38. Rb8 Rc7 39. Rbf8+ Kg6 40. Rc8 Rb7 41. f4 h6 42. Rb8 Rc7 43. Rgc8 Rd7 44. Rd8 Rc7 45. Rbc8 Rb7 46. h3 Kh5 47. Kf3 Kg6 48. g4 fxg4+ 49. hxg4 h5 50. Rc6 hxg4+ 51. Kxg4 Kf7 52. Rdc8 Rd7 53. R6c7 a5 54. Rxd7+ Nxd7 55. Rc7 Ke8 56. Ra7 Kd8 57. Kg5 Nc5 58. Rxg7 Nd7 59. f5 exf5 60. e6 Nc5 61. Kf6 Ne4+ 62. Kxf5 Nd6+ 63. Ke5 Nc4+ 64. Kf6 a4 65. e7+ Kd7 66. Rg8 Nd6 67. Rd8+ Kc7 68. Rxd6 1-0

[Event "Romanian Open 2019"]
[Site "Alba Iulia"]
[Date "2019.10.28"]
[Round "1.10"]
[White "Veress, Armand"]
[Black "David, Alexandru-Vasile"]
[Result "0-1"]
[ECO "B01"]
[WhiteElo "2159"]
[BlackElo "2424"]
[Annotator "NA"]
[PlyCount "56"]
[EventDate "2019.10.28"]
[EventType "swiss"]
[EventCountry "ROU"]
[SourceTitle "playchess.com"]
[Source "ChessBase"]
[SourceQuality "1"]
[TimeControl "5400+30"]

1. e4 {[%emt 0:00:00]} d5 {[%emt 0:00:00]} 2. exd5 {[%emt 0:00:00]} Nf6 {[%emt 0:00:00]} 3. Nf3 {[%emt 0:00:03]} Bg4 {[%emt 0:00:06]} 4. Be2 {[%emt 0:00:09]} Qxd5 {[%emt 0:00:43]} 5. d4 {[%emt 0:00:10]} Nc6 {[%emt 0:04:28]} 6. O-O {[%emt 0:00:54]} O-O-O {[%emt 0:04:53]} 7. c4 {[%emt 0:02:36]} Qf5 {[%emt 0:02:17]} 8. Be3 {[%emt 0:03:40]} e6 {[%emt 0:02:02]} 9. Nbd2 {[%emt 0:05:53]} Bd6 {[%emt 0:05:59]} 10. Qa4 {[%emt 0:06:23]} Qh5 {[%emt 0:02:17]} 11. h3 {[%emt 0:05:20]} Bxh3 {[%emt 0:01:07]} 12. gxh3 {[%emt 0:01:10]} Qxh3 {[%emt 0:00:05]} 13. c5 {[%emt 0:01:31]} Qg4+ {[%emt 0:00:57]} 14. Kh1 {[%emt 0:00:16]} Bf4 {[%emt 0:00:37]} 15. Bxf4 {[%emt 0:33:47]} Qxf4 {[%emt 0:01:41]} 16. Rg1 {[%emt 0:02:36]} Kb8 {[%emt 0:20:41]} 17. Nb3 {[%emt 0:09:17]} e5 {[%emt 0:12:18]} 18. Rad1 {[%emt 0:16:40]} g5 {[%emt 0:11:42]} 19. Qc4 {[%emt 0:01:53]} g4 {[%emt 0:02:12]} 20. Nh2 {[%emt 0:01:20]} exd4 {[%emt 0:04:38]} 21. Rg2 {[%emt 0:01:38]} Ne4 {[%emt 0:01:39]} 22. Kg1 {[%emt 0:00:58]} g3 {[%emt 0:03:33]} 23. fxg3 {[%emt 0:02:33]} Qe3+ {[%emt 0:00:32]} 24. Kh1 {[%emt 0:00:26]} Nxg3+ {[%emt 0:02:52]} 25. Rxg3 {[%emt 0:00:06]} Qxg3 {[%emt 0:00:03]} 26. Nxd4 {[%emt 0:02:25]} Nxd4 {[%emt 0:03:49]} 27. Rxd4 {[%emt 0:00:06]} f5 {[%emt 0:01:27]} 28. Rf4 {[%emt 0:01:10]} Rhg8 {[%emt 0:00:23]} 0-1

[Event "Romanian Open 2019"]
[Site "Alba Iulia"]
[Date "2019.10.28"]
[Round "1.11"]
[White "Omelja, Artem"]
[Black "Voinescu, David-Ioan"]
[Result "1-0"]
[ECO "A06"]
[WhiteElo "2424"]
[BlackElo "2159"]
[Annotator "NA"]
[PlyCount "133"]
[EventDate "2019.10.28"]
[EventType "swiss"]
[EventCountry "ROU"]
[SourceTitle "playchess.com"]
[Source "ChessBase"]
[SourceQuality "1"]
[TimeControl "5400+30"]

1. Nf3 {[%emt 0:00:00]} d5 {[%emt 0:00:00]} 2. g3 {[%emt 0:00:22]} Nf6 {[%emt 0:00:00]} 3. Bg2 {[%emt 0:00:10]} Bf5 {[%emt 0:01:11]} 4. O-O {[%emt 0:00:26]} e6 {[%emt 0:01:12]} 5. c4 {[%emt 0:00:18]} c6 {[%emt 0:00:23]} 6. d3 {[%emt 0:00:37]} Be7 {[%emt 0:08:36]} 7. b3 {[%emt 0:02:09]} O-O {[%emt 0:01:51]} 8. Bb2 {[%emt 0:00:09]} Na6 {[%emt 0:11:28]} 9. Nbd2 {[%emt 0:00:48]} Rc8 {[%emt 0:05:18]} 10. a3 {[%emt 0:02:50]} Nd7 {[%emt 0:08:26]} 11. b4 {[%emt 0:02:06]} Bf6 {[%emt 0:06:05]} 12. Qb3 {[%emt 0:01:43]} Bxb2 {[%emt 0:01:33]} 13. Qxb2 {[%emt 0:00:08]} Qf6 {[%emt 0:07:01]} 14. Qxf6 {[%emt 0:00:44]} Nxf6 {[%emt 0:02:20]} 15. Rfc1 {[%emt 0:00:41]} Rfe8 {[%emt 0:19:09]} 16. Ne5 {[%emt 0:01:06]} Kf8 {[%emt 0:09:28]} 17. Nb3 {[%emt 0:04:12]} Nb8 {[%emt 0:04:39]} 18. f4 {[%emt 0:03:14]} Ke7 {[%emt 0:01:28]} 19. Kf2 {[%emt 0:00:19]} Nbd7 {[%emt 0:01:14]} 20. Nxd7 {[%emt 0:00:20]} Kxd7 {[%emt 0:03:29]} 21. e4 {[%emt 0:01:19]} dxe4 {[%emt 0:00:13]} 22. dxe4 {[%emt 0:00:18]} Bg6 {[%emt 0:00:06]} 23. h3 {[%emt 0:01:08]} Kc7 {[%emt 0:00:27]} 24. Ke3 {[%emt 0:00:31]} Nd7 {[%emt 0:02:17]} 25. c5 {[%emt 0:00:17]} f6 {[%emt 0:00:23]} 26. Na5 {[%emt 0:00:51]} Rcd8 {[%emt 0:01:49]} 27. Nc4 {[%emt 0:03:31]} Re7 {[%emt 0:00:06]} 28. Rc3 {[%emt 0:02:22]} e5 {[%emt 0:01:02]} 29. Nd6 {[%emt 0:06:33]} b6 {[%emt 0:01:20]} 30. f5 {[%emt 0:00:57]} Bf7 {[%emt 0:00:19]} 31. cxb6+ {[%emt 0:11:12]} axb6 {[%emt 0:00:03]} 32. Nxf7 {[%emt 0:00:31]} Rxf7 {[%emt 0:00:04]} 33. Rac1 {[%emt 0:00:11]} Nb8 {[%emt 0:00:05]} 34. Bf1 {[%emt 0:00:05]} Rfd7 {[%emt 0:02:08]} 35. Bc4 {[%emt 0:00:39]} Rd1 {[%emt 0:00:37]} 36. Bd5 {[%emt 0:01:01]} Rxc1 {[%emt 0:00:06]} 37. Rxc1 {[%emt 0:00:05]} Kb7 {[%emt 0:00:08]} 38. Bb3 {[%emt 0:02:00]} b5 {[%emt 0:01:13]} 39. g4 {[%emt 0:00:32]} h6 {[%emt 0:00:08]} 40. h4 {[%emt 0:00:06]} Kb6 {[%emt 0:00:20]} 41. Be6 {[%emt 0:04:08]} Na6 {[%emt 0:00:28]} 42. Rc3 {[%emt 0:00:45]} Rd4 {[%emt 0:01:02]} 43. Kf3 {[%emt 0:00:43]} c5 {[%emt 0:00:24]} 44. bxc5+ {[%emt 0:00:21]} Nxc5 {[%emt 0:00:02]} 45. Bd5 {[%emt 0:00:08]} Rd3+ {[%emt 0:00:18]} 46. Rxd3 {[%emt 0:00:09]} Nxd3 {[%emt 0:00:02]} 47. g5 {[%emt 0:00:40]} hxg5 {[%emt 0:00:11]} 48. hxg5 {[%emt 0:00:04]} Kc5 {[%emt 0:01:50]} 49. gxf6 {[%emt 0:00:55]} gxf6 {[%emt 0:00:28]} 50. Kg4 {[%emt 0:00:31]} Ne1 {[%emt 0:01:26]} 51. Kh5 {[%emt 0:00:59]} Kd6 {[%emt 0:00:17]} 52. Kg6 {[%emt 0:00:11]} Ke7 {[%emt 0:00:01]} 53. Bc6 {[%emt 0:00:06]} Nc2 {[%emt 0:00:06]} 54. Bxb5 {[%emt 0:00:06]} Nd4 {[%emt 0:01:00]} 55. Bc4 {[%emt 0:01:46]} Nc6 {[%emt 0:00:06]} 56. a4 {[%emt 0:00:23]} Na7 {[%emt 0:00:11]} 57. Be6 {[%emt 0:02:09]} Nc6 {[%emt 0:00:07]} 58. Bd5 {[%emt 0:00:19]} Nb4 {[%emt 0:01:20]} 59. Bb7 {[%emt 0:00:34]} Nc2 {[%emt 0:00:26]} 60. Kg7 {[%emt 0:00:35]} Nd4 {[%emt 0:01:43]} 61. Bd5 {[%emt 0:01:16]} Nc2 {[%emt 0:00:02]} 62. a5 {[%emt 0:01:41]} Nd4 {[%emt 0:00:11]} 63. a6 {[%emt 0:00:27]} Nb5 {[%emt 0:00:03]} 64. Bc6 {[%emt 0:00:12]} Na7 {[%emt 0:00:05]} 65. Bd7 {[%emt 0:00:08]} Kxd7 {[%emt 0:00:20]} 66. Kxf6 {[%emt 0:00:07]} Nc6 {[%emt 0:02:30]} 67. Kg7 {[%emt 0:00:59]} 1-0

[Event "Romanian Open 2019"]
[Site "Alba Iulia"]
[Date "2019.10.28"]
[Round "1.12"]
[White "Mehmed, Elif"]
[Black "Filip, Lucian-Ioan"]
[Result "0-1"]
[ECO "A16"]
[WhiteElo "2122"]
[BlackElo "2418"]
[Annotator "NA"]
[PlyCount "54"]
[EventDate "2019.10.28"]
[EventType "swiss"]
[EventCountry "ROU"]
[SourceTitle "playchess.com"]
[Source "ChessBase"]
[SourceQuality "1"]
[TimeControl "5400+30"]

1. c4 {[%emt 0:00:00]} Nf6 {[%emt 0:01:02]} 2. Nc3 {[%emt 0:00:00]} c5 {[%emt 0:00:09]} 3. Nf3 {[%emt 0:00:00]} e6 {[%emt 0:00:10]} 4. e3 {[%emt 0:00:00]} g6 {[%emt 0:10:17]} 5. d4 {[%emt 0:02:43]} Bg7 {[%emt 0:02:41]} 6. dxc5 {[%emt 0:08:14]} Na6 {[%emt 0:00:53]} 7. e4 {[%emt 0:11:30]} Nxc5 {[%emt 0:03:48]} 8. e5 {[%emt 0:01:49]} Nfe4 {[%emt 0:00:43]} 9. Nxe4 {[%emt 0:09:14]} Nxe4 {[%emt 0:00:04]} 10. Qd4 {[%emt 0:00:42]} Qa5+ {[%emt 0:01:49]} 11. Kd1 {[%emt 0:16:45]} d5 {[%emt 0:03:35]} 12. Bd3 {[%emt 0:05:20]} O-O {[%emt 0:21:18]} 13. Bxe4 {[%emt 0:01:44]} dxe4 {[%emt 0:02:04]} 14. Qxe4 {[%emt 0:00:05]} Bd7 {[%emt 0:04:00]} 15. Bd2 {[%emt 0:02:44]} Qa6 {[%emt 0:05:42]} 16. h4 {[%emt 0:09:42]} Bc6 {[%emt 0:04:06]} 17. Qf4 {[%emt 0:05:25]} Qb6 {[%emt 0:06:38]} 18. Ke2 {[%emt 0:09:00]} Qxb2 {[%emt 0:00:14]} 19. Rab1 {[%emt 0:01:44]} Qxa2 {[%emt 0:01:38]} 20. h5 {[%emt 0:01:16]} Rad8 {[%emt 0:04:02]} 21. Rhd1 {[%emt 0:07:07]} Qc2 {[%emt 0:04:45]} 22. Ra1 {[%emt 0:01:26]} a6 {[%emt 0:03:20]} 23. Kf1 {[%emt 0:01:43]} Qd3+ {[%emt 0:05:36]} 24. Kg1 {[%emt 0:00:08]} Bxf3 {[%emt 0:00:08]} 25. gxf3 {[%emt 0:00:26]} Rd4 {[%emt 0:00:18]} 26. Bb4 {[%emt 0:03:19]} Qxd1+ {[%emt 0:00:23]} 27. Rxd1 {[%emt 0:00:06]} Rxf4 {[%emt 0:00:13]} 0-1

[Event "Romanian Open 2019"]
[Site "Alba Iulia"]
[Date "2019.10.29"]
[Round "2.1"]
[White "Fedorov, Alexei"]
[Black "Manush Shah"]
[Result "1-0"]
[ECO "B12"]
[WhiteElo "2551"]
[BlackElo "2352"]
[Annotator "ChessBase"]
[PlyCount "83"]
[EventDate "2019.10.28"]
[EventType "swiss"]
[EventCountry "ROU"]
[SourceTitle "playchess.com"]
[Source "ChessBase"]
[SourceQuality "1"]
[TimeControl "5400+30"]

1. e4 {[%emt 0:00:00]} c6 {[%emt 0:00:30]} 2. d4 {[%emt 0:00:00]} d5 {[%emt 0:00:07]} 3. e5 {[%emt 0:00:00]} Bf5 {[%emt 0:00:11]} 4. Nd2 {[%emt 0:00:16]} e6 {[%emt 0:00:12]} 5. Nb3 {[%emt 0:00:07]} c5 {[%emt 0:00:03]} 6. Nf3 {[%emt 0:06:40]} c4 {[%emt 0:04:21]} 7. Nbd2 {[%emt 0:00:04]} Nc6 {[%emt 0:00:26]} 8. c3 {[%emt 0:00:23]} b5 {[%emt 0:00:54]} 9. Be2 {[%emt 0:05:01]} h6 {[%emt 0:03:57]} 10. Nf1 {[%emt 0:01:40]} Nge7 {[%emt 0:01:10]} 11. Ne3 {[%emt 0:02:20]} Bh7 {[%emt 0:00:49]} 12. g3 {[%emt 0:00:13]} Rb8 {[%emt 0:06:32]} 13. Nh4 {[%emt 0:02:00]} Nc8 {[%emt 0:03:44]} 14. O-O {[%emt 0:02:22]} Be7 {[%emt 0:00:21]} 15. Nhg2 {[%emt 0:00:06]} b4 {[%emt 0:07:13]} 16. f4 {[%emt 0:12:40]} bxc3 {[%emt 0:02:59]} 17. bxc3 {[%emt 0:00:24]} Qa5 {[%emt 0:00:18]} 18. Qe1 {[%emt 0:08:39]} Nxd4 {[%emt 0:07:02]} 19. cxd4 {[%emt 0:01:32]} Bb4 {[%emt 0:00:12]} 20. Qf2 {[%emt 0:00:57]} Bc3 {[%emt 0:00:01]} 21. f5 {[%emt 0:00:09]} Bxa1 {[%emt 0:06:58]} 22. fxe6 {[%emt 0:01:56]} O-O {[%emt 0:05:01]} 23. exf7+ {[%emt 0:14:38]} Kh8 {[%emt 0:00:07]} 24. Ng4 {[%emt 0:00:32]} Qa6 {[%emt 0:13:43]} 25. e6 {[%emt 0:12:54]} Qxe6 {[%emt 0:04:32]} 26. Ne5 {[%emt 0:02:39]} Nd6 {[%emt 0:05:43]} 27. Nf4 {[%emt 0:11:46]} Qf6 {[%emt 0:03:32]} 28. Ba3 {[%emt 0:06:31]} Bb2 {[%emt 0:19:21]} 29. Bxd6 {[%emt 0:02:16]} Qxd6 {[%emt 0:00:16]} 30. Bh5 {[%emt 0:00:24]} Qb6 {[%emt 0:03:13]} 31. Nfg6+ {[%emt 0:01:00]} Bxg6 {[%emt 0:00:02]} 32. Nxg6+ {[%emt 0:00:05]} Kh7 {[%emt 0:00:04]} 33. Qf5 {[%emt 0:00:32]} Qxd4+ {[%emt 0:00:14]} 34. Rf2 {[%emt 0:00:11]} Rxf7 {[%emt 0:00:22]} 35. Nf8+ {[%emt 0:00:22]} Kg8 {[%emt 0:00:13]} 36. Qxf7+ {[%emt 0:00:42]} Kh8 {[%emt 0:00:01]} 37. Ng6+ {[%emt 0:04:12]} Kh7 {[%emt 0:00:01]} 38. Ne7 {[%emt 0:00:22]} Ba3 {[%emt 0:00:49]} 39. Bg6+ {[%emt 0:01:11]} Kh8 {[%emt 0:00:01]} 40. Nc6 {[%emt 0:00:17]} Qa1+ {[%emt 0:00:25]} 41. Rf1 {[%emt 0:00:26]} Bc5+ {[%emt 0:00:16]} 42. Kh1 {[%emt 0:00:08]} 1-0

[Event "Romanian Open 2019"]
[Site "Alba Iulia"]
[Date "2019.10.29"]
[Round "2.2"]
[White "Stoleriu, George"]
[Black "Pap, Misa"]
[Result "0-1"]
[ECO "C77"]
[WhiteElo "2351"]
[BlackElo "2432"]
[Annotator "NA"]
[PlyCount "62"]
[EventDate "2019.10.28"]
[EventType "swiss"]
[EventCountry "ROU"]
[SourceTitle "playchess.com"]
[Source "ChessBase"]
[SourceQuality "1"]
[TimeControl "5400+30"]

1. e4 {[%emt 0:00:00]} e5 {[%emt 0:00:02]} 2. Nf3 {[%emt 0:00:05]} Nc6 {[%emt 0:00:12]} 3. Bb5 {[%emt 0:00:04]} a6 {[%emt 0:00:28]} 4. Ba4 {[%emt 0:00:04]} Nf6 {[%emt 0:00:20]} 5. d3 {[%emt 0:00:05]} Bc5 {[%emt 0:00:51]} 6. Nc3 {[%emt 0:02:23]} b5 {[%emt 0:12:03]} 7. Bb3 {[%emt 0:00:05]} d6 {[%emt 0:00:04]} 8. Bg5 {[%emt 0:17:18]} h6 {[%emt 0:10:22]} 9. Bh4 {[%emt 0:01:00]} Bg4 {[%emt 0:21:01]} 10. h3 {[%emt 0:41:13]} Bxf3 {[%emt 0:00:24]} 11. Qxf3 {[%emt 0:00:05]} Nd4 {[%emt 0:00:19]} 12. Qd1 {[%emt 0:00:03]} a5 {[%emt 0:09:45]} 13. Bxf6 {[%emt 0:07:33]} Qxf6 {[%emt 0:00:26]} 14. Nd5 {[%emt 0:00:05]} Qd8 {[%emt 0:10:11]} 15. c3 {[%emt 0:04:48]} Nxb3 {[%emt 0:00:52]} 16. axb3 {[%emt 0:00:03]} c6 {[%emt 0:00:45]} 17. Ne3 {[%emt 0:00:11]} Bxe3 {[%emt 0:01:19]} 18. fxe3 {[%emt 0:00:04]} Qh4+ {[%emt 0:00:33]} 19. Kd2 {[%emt 0:00:06]} O-O {[%emt 0:00:44]} 20. Qf3 {[%emt 0:02:39]} a4 {[%emt 0:07:19]} 21. Rhf1 {[%emt 0:02:25]} Qe7 {[%emt 0:00:07]} 22. bxa4 {[%emt 0:03:03]} bxa4 {[%emt 0:00:25]} 23. Ra2 {[%emt 0:01:19]} Qe6 {[%emt 0:04:17]} 24. Rfa1 {[%emt 0:00:05]} f5 {[%emt 0:01:19]} 25. Ke2 {[%emt 0:08:39]} fxe4 {[%emt 0:06:07]} 26. Qxe4 {[%emt 0:00:05]} Qf7 {[%emt 0:01:10]} 27. Qc4 {[%emt 0:01:31]} d5 {[%emt 0:00:05]} 28. Qh4 {[%emt 0:00:02]} e4 {[%emt 0:01:44]} 29. Qg3 {[%emt 0:06:42]} Rab8 {[%emt 0:02:07]} 30. Rd1 {[%emt 0:02:08]} d4 {[%emt 0:01:11]} 31. c4 {[%emt 0:00:03]} exd3+ {[%emt 0:00:20]} 0-1